bitfinex-derivatives/quotes_ETHF0:USTF0_20260118
["timestamp","ask_amount","ask_price","bid_price","bid_amount"]
[1768777466353,0.15024,3329.0,3327.6,0.00317898]
[1768777466549,0.15024,3329.0,3325.6,0.68965684]
[1768777466550,3.003,3328.9,3325.6,0.68965684]
[1768777466744,3.09612935,3328.9,3325.6,0.68965684]
[1768777466941,0.101436,3328.8,3325.6,0.68965684]
[1768777467146,0.15027,3328.4,3325.6,0.68965684]
[1768777467349,0.15029,3328.0,3325.6,0.68965684]
[1768777467545,0.15272793,3328.0,3325.6,0.69229134]
[1768777469146,0.10527911,3328.0,3325.6,0.0026345]
[1768777469355,0.10284118,3327.7,3325.6,0.0026345]
[1768777469551,3.004,3327.6,3325.6,0.0026345]
[1768777469755,0.10284118,3327.7,3325.6,0.0026345]
[1768777469953,0.15031,3327.6,3325.6,0.0026345]
[1768777470157,0.15031,3327.6,3325.6,0.69229134]
[1768777470462,0.00243793,3328.0,3325.6,0.69229134]
[1768777470651,0.00243793,3328.0,3325.8,0.68965684]
[1768777470846,0.00243793,3328.0,3326.3,0.00450721]
[1768777471050,0.00243793,3328.0,3326.3,0.69416405]
[1768777471250,1.03078809,3330.9,3326.3,0.69416405]
[1768777471251,1.03078809,3330.9,3326.6,0.68965684]
[1768777471454,0.70109773,3332.9,3329.6,0.15027707]
[1768777471754,0.70109773,3332.9,3326.5,0.0008]
[1768777471755,0.70109773,3331.9,3327.9,0.07]
[1768777471953,0.70109773,3331.0,3327.2,0.15032]
[1768777472150,0.15018,3330.4,3327.2,0.15032]
[1768777472349,0.70109773,3330.3,3327.3,0.15032]
[1768777472552,0.70109773,3330.3,3327.4,0.15031]
[1768777472750,3.33134098,3329.5,3327.4,0.15031]
[1768777472960,0.70109773,3329.5,3328.5,0.00450721]
[1768777473556,2.63024325,3329.1,3328.5,0.00450721]
[1768777473860,2.63024325,3329.1,3327.2,0.00344745]
[1768777474161,0.70109773,3329.5,3327.2,0.00344745]
[1768777475554,0.00212011,3330.4,3327.2,0.00344745]
[1768777475555,0.70109773,3330.3,3328.0,0.15029]
[1768777476964,0.70109773,3330.3,3328.0,3.15529]
[1768777477160,0.70109773,3330.1,3327.3,0.15032]
[1768777477649,0.70109773,3330.1,3327.3,3.15532]
[1768777477850,0.70109773,3330.1,3327.7,0.1503]
[1768777479364,0.00212011,3330.4,3327.2,0.00344745]
[1768777479365,0.76866623,3329.6,3327.2,0.00344745]
[1768777480457,0.76866623,3329.1,3327.2,0.00344745]
[1768777481365,0.76866623,3329.1,3327.2,0.15376745]
[1768777482060,3.005,3329.9,3327.2,0.00344745]
[1768777482061,0.76866623,3328.8,3327.2,0.00344745]
[1768777482553,0.76866623,3328.6,3327.2,0.00344745]
[1768777482954,0.76866623,3328.5,3327.2,0.00344745]
[1768777485970,0.76866623,3329.1,3327.4,0.15031]
[1768777487265,0.76866623,3329.1,3327.2,0.00344745]
[1768777487469,0.76866623,3329.7,3327.9,0.15029]
[1768777487770,0.76866623,3329.7,3328.0,0.15029]
[1768777489171,0.76866623,3329.7,3327.6,3.006]
[1768777489557,3.39890948,3329.7,3327.6,0.1503]
[1768777489771,0.76866623,3329.5,3327.6,0.1503]
[1768777489968,0.76866623,3329.4,3327.6,0.1503]
[1768777490567,0.76866623,3329.4,3327.7,0.1503]
[1768777490770,0.76866623,3329.4,3327.8,0.15029]
[1768777492773,0.76866623,3329.4,3328.6,0.05981441]
[1768777493377,2.63024325,3329.3,3328.6,0.05981441]
[1768777494072,0.00212011,3330.4,3328.9,0.05981441]
[1768777494073,0.65355161,3330.3,3328.9,0.05981441]
[1768777494276,0.65355161,3330.1,3328.9,0.05981441]
[1768777494575,0.65355161,3330.0,3328.9,0.05981441]
[1768777494767,0.65355161,3329.3,3327.7,0.1503]
[1768777495973,0.65355161,3329.3,3327.8,0.1503]
[1768777496165,0.65355161,3329.3,3327.6,3.005]
[1768777496366,0.65355161,3329.3,3328.2,0.15028]
[1768777496563,0.00212011,3330.4,3327.6,3.005]
[1768777496564,0.65355161,3329.9,3328.3,0.15027]
[1768777500675,0.65355161,3329.7,3328.3,0.15027]
[1768777500876,3.28379486,3329.3,3327.2,0.00344745]
[1768777501174,0.65355161,3328.7,3327.2,0.00344745]
[1768777501371,0.65355161,3328.5,3327.2,0.00344745]
[1768777501574,0.65355161,3328.4,3327.2,0.00344745]
[1768777501877,0.65355161,3327.2,3325.7,0.15039]
[1768777502384,1.21340989,3327.9,3325.7,0.15039]
[1768777502385,0.65355161,3326.9,3325.7,0.15039]
[1768777502568,0.65355161,3327.9,3325.2,3.005]
[1768777502776,0.65605733,3327.9,3325.4,0.00956522]
[1768777503180,0.65355161,3327.7,3325.4,0.00956522]
[1768777503380,0.65355161,3327.7,3325.5,3.005]
[1768777503685,0.65355161,3327.7,3325.9,0.15038]
[1768777504584,0.65355161,3327.6,3325.9,0.15038]
[1768777504784,3.28379486,3327.5,3325.9,0.15038]
[1768777504982,0.00250572,3327.9,3325.9,0.15038]
[1768777504983,0.65355161,3327.4,3325.9,0.15038]
[1768777505285,0.65355161,3327.4,3325.5,3.006]
[1768777505582,0.65355161,3327.4,3325.8,0.15039]
[1768777506686,0.65355161,3327.4,3326.6,0.01537385]
[1768777507279,0.65355161,3327.3,3326.6,0.01537385]
[1768777507787,3.28379486,3326.7,3325.5,0.1504]
[1768777507993,0.65355161,3326.7,3325.5,0.1504]
[1768777508796,0.65355161,3327.8,3325.7,0.15039]
[1768777509193,0.65355161,3327.6,3325.4,0.00956522]
[1768777509881,0.65355161,3327.6,3325.9,0.15038]
[1768777512189,0.65355161,3327.5,3325.9,0.15038]
[1768777512899,0.65355161,3327.5,3326.7,0.01300607]
[1768777513106,0.65355161,3327.1,3325.9,0.15038]
[1768777513410,0.65355161,3326.6,3325.4,0.00956522]
[1768777513899,0.65355161,3327.8,3326.0,0.15037]
[1768777514410,0.65355161,3327.1,3325.4,0.00956522]
[1768777514704,0.65355161,3327.1,3325.6,0.1504]
[1768777515399,0.65355161,3327.1,3325.4,0.00956522]
[1768777515806,0.00250572,3327.9,3326.4,0.15036]
[1768777515997,0.65605733,3327.9,3326.5,4.82935]
[1768777516197,0.65605733,3327.9,3326.6,3.007]
[1768777516695,0.65605733,3327.9,3326.5,0.15035]
[1768777516892,0.65355161,3328.6,3326.6,3.007]
[1768777517900,0.65572585,3328.6,3325.9,4.963]
[1768777518100,0.65572585,3328.6,3327.1,0.15033]
[1768777518502,0.65355161,3328.4,3327.1,0.15033]
[1768777519402,0.65355161,3328.4,3327.2,0.15032]
[1768777519910,0.65355161,3328.2,3327.2,0.15032]
[1768777520300,0.65355161,3328.2,3326.8,3.006]
[1768777520301,0.65355161,3328.1,3326.8,3.006]
[1768777520506,0.65355161,3328.1,3326.4,0.15036]
[1768777521195,0.65355161,3328.1,3327.2,0.01191363]
[1768777521603,0.00217424,3328.6,3327.2,0.01191363]
[1768777521604,0.65355161,3327.7,3327.2,0.01191363]
[1768777522000,0.65355161,3327.5,3327.2,0.01191363]
[1768777522209,0.65355161,3327.5,3327.3,0.01191363]
[1768777522411,0.00217424,3328.6,3327.3,0.01191363]
[1768777522412,0.49911624,3328.5,3327.3,0.01191363]
[1768777522609,0.49911624,3328.0,3327.3,0.01191363]
[1768777522909,0.49911624,3328.0,3327.6,0.02018689]
[1768777523106,0.49911624,3328.0,3326.8,0.15034]
[1768777523303,0.49911624,3327.9,3326.8,0.15034]
[1768777525110,0.00217424,3328.6,3326.9,0.15034]
[1768777525407,0.14651724,3329.3,3326.9,0.15034]
[1768777525908,2.63024325,3329.1,3328.1,0.01049613]
[1768777526110,0.14651724,3329.3,3328.6,0.01399484]
[1768777526309,0.15021,3329.8,3328.9,0.01749355]
[1768777526502,1.06092564,3329.7,3327.3,0.15032]
[1768777526700,0.15021,3329.7,3327.3,0.15032]
[1768777526908,2.63024325,3329.3,3327.3,0.15032]
[1768777527105,0.49911624,3329.2,3327.3,0.15032]
[1768777527311,0.49911624,3329.0,3327.3,0.15032]
[1768777527509,0.50135026,3329.0,3327.3,0.15032]
[1768777527715,0.50135026,3329.0,3327.4,0.15031]
[1768777528012,0.50135026,3329.0,3327.1,0.00281949]
[1768777528013,0.50135026,3329.0,3327.5,0.15031]
[1768777528211,0.50135026,3329.0,3327.6,0.15031]
[1768777529499,0.50135026,3329.0,3327.2,1.47396745]
[1768777529704,0.00223402,3329.0,3327.3,3.006]
[1768777530603,0.00223402,3329.0,3327.9,0.15029]
[1768777530799,0.00223402,3329.0,3327.4,0.15031]
[1768777531004,0.50135026,3329.0,3327.6,0.1503]
[1768777531213,0.50135026,3329.0,3327.7,0.1503]
[1768777532007,0.00223402,3329.0,3327.9,0.15029]
[1768777533207,0.00223402,3329.0,3328.4,0.01198709]
[1768777533408,0.49911624,3329.6,3328.4,0.01198709]
[1768777533609,2.63024325,3329.4,3328.4,0.01198709]
[1768777534211,2.63024325,3329.3,3328.9,0.01198709]
[1768777534418,2.63024325,3329.0,3328.1,0.15028]
[1768777534717,0.00275312,3329.3,3328.1,0.15028]
[1768777535208,2.63024325,3329.0,3328.1,0.15028]
[1768777535520,0.50186936,3329.3,3328.1,0.15028]
[1768777536012,3.13211261,3329.3,3328.1,0.15028]
[1768777536210,0.00275312,3329.3,3328.1,0.15028]
[1768777537213,0.00275312,3329.3,3328.3,0.15027]
[1768777539717,0.00275312,3329.3,3328.4,1.672]
[1768777540917,0.00275312,3329.3,3327.7,0.1503]
[1768777540918,2.63024325,3329.0,3327.7,0.1503]
[1768777541218,0.43536658,3329.3,3327.7,1.8223]
[1768777541418,0.43261346,3329.2,3327.7,1.8223]
[1768777541614,0.42674046,3329.1,3327.7,1.8223]
[1768777542610,0.00275312,3329.3,3328.1,0.15028]
[1768777543019,2.63024325,3328.9,3327.7,1.672]
[1768777543217,2.63024325,3329.1,3328.3,0.03597859]
[1768777543713,2.63024325,3328.7,3328.3,0.03597859]
[1768777543914,0.00275312,3329.3,3328.3,0.03597859]
[1768777544115,2.29045325,3328.9,3328.3,0.03597859]
[1768777544316,2.29045325,3328.9,3327.9,0.15029]
[1768777544516,0.43261346,3329.2,3327.9,0.15029]
[1768777544719,2.29045325,3329.1,3327.9,0.15029]
[1768777545221,2.29045325,3329.0,3327.9,0.15029]
[1768777545422,2.29045325,3329.1,3327.9,0.15029]
[1768777545826,2.29045325,3329.0,3327.9,0.15029]
[1768777546122,2.29045325,3329.1,3327.9,0.15029]
[1768777546510,2.29045325,3329.0,3327.9,0.15029]
[1768777546710,0.00275312,3329.3,3328.0,0.15029]
[1768777547114,2.29045325,3329.2,3328.0,0.15029]
[1768777547816,0.00275312,3329.3,3328.0,0.15029]
[1768777548017,2.29320637,3329.3,3328.0,0.15029]
[1768777548218,2.29320637,3329.3,3328.3,0.15027]
[1768777548421,0.00275312,3329.3,3328.3,0.15027]
[1768777548716,2.29045325,3329.1,3328.3,0.15027]
[1768777549128,0.00275312,3329.3,3328.4,0.15027]
[1768777549528,1.6570473,3329.2,3328.4,0.15027]
[1768777549724,0.00275312,3329.3,3328.4,0.15027]
[1768777549930,1.6511813,3329.2,3328.4,0.15027]
[1768777550131,0.00275312,3329.3,3328.4,0.15027]
[1768777550334,1.6511813,3329.2,3328.4,0.15027]
[1768777550934,0.00275312,3329.3,3328.4,0.15027]
[1768777552330,1.6511813,3329.2,3328.4,0.15027]
[1768777552530,0.00275312,3329.3,3328.4,0.15027]
[1768777553325,0.00275312,3329.3,3328.8,0.04119879]
[1768777553538,0.43261346,3329.7,3328.8,0.04119879]
[1768777553738,1.6511813,3329.3,3328.8,0.04119879]
[1768777554233,1.6511813,3329.1,3328.8,0.04119879]
[1768777554433,0.43261346,3329.7,3329.0,0.04119879]
[1768777554629,0.38524127,3329.4,3329.0,0.04119879]
[1768777555034,1.6511813,3329.1,3329.0,0.04119879]
[1768777555334,0.38524127,3329.4,3329.0,0.04119879]
[1768777555635,1.6511813,3329.1,3329.0,0.04119879]
[1768777557725,1.6511813,3329.1,3328.4,1.82127]
[1768777558038,1.6451743,3329.0,3328.4,1.82127]
[1768777558240,1.6451743,3329.2,3328.4,1.82127]
[1768777558535,1.6451743,3329.1,3328.4,1.82127]
[1768777558740,1.6451743,3329.2,3328.4,1.82127]
[1768777558940,1.3293543,3329.3,3328.6,0.15026]
[1768777559439,1.3293543,3329.2,3328.6,0.15026]
[1768777559832,1.3293543,3329.1,3328.6,0.15026]
[1768777560143,1.3293543,3329.2,3328.6,0.15026]
[1768777560440,1.3293543,3329.0,3328.2,1.82228]
[1768777560633,0.38818575,3329.4,3328.3,0.15027]
[1768777560834,1.71754005,3329.4,3328.4,0.15027]
[1768777561241,1.71459557,3329.3,3328.4,0.15027]
[1768777561440,1.71459557,3329.2,3328.5,1.673]
[1768777561654,1.3293543,3329.1,3328.4,1.82327]
[1768777561949,0.38524127,3328.9,3328.0,0.247]
[1768777562242,1.71459557,3328.9,3328.1,1.673]
[1768777562446,1.3293543,3328.7,3328.1,1.673]
[1768777562644,1.3293543,3328.6,3328.1,1.673]
[1768777562836,1.0200843,3328.7,3328.1,1.673]
[1768777563144,0.00294448,3329.4,3328.1,1.673]
[1768777563342,0.00294448,3329.4,3328.7,0.01427498]
[1768777564239,1.06311989,3330.7,3328.7,0.01427498]
[1768777564444,1.9827591,3330.7,3328.5,0.247]
[1768777564738,0.91963921,3330.6,3328.5,0.247]
[1768777564937,0.91963921,3330.5,3328.5,0.247]
[1768777565146,0.38524127,3330.3,3328.5,0.247]
[1768777565332,0.38812968,3330.3,3328.5,0.247]
[1768777565937,0.38812968,3330.3,3328.5,0.39726]
[1768777566948,0.38812968,3330.3,3328.6,0.15026]
[1768777567849,0.38812968,3330.3,3327.8,5.35202668]
[1768777568041,0.38524127,3330.1,3327.9,1.674]
[1768777568840,0.38524127,3329.9,3327.4,7.12863089]
[1768777569046,0.38524127,3329.9,3327.5,4.82931]
[1768777569244,0.38524127,3329.9,3327.6,4.679]
[1768777569945,0.38524127,3329.9,3327.7,0.1503]
[1768777570146,0.38524127,3329.9,3327.6,4.679]
[1768777570555,0.38524127,3329.9,3327.8,0.1503]
[1768777570852,0.38524127,3329.9,3327.9,0.15029]
[1768777571547,0.38524127,3329.9,3328.0,1.674]
[1768777572057,0.38524127,3329.7,3327.4,3.005]
[1768777572246,0.38524127,3329.5,3327.4,4.679]
[1768777572447,0.38524127,3329.5,3327.2,0.15032]
[1768777572653,0.38524127,3329.5,3327.3,1.674]
[1768777573343,0.38524127,3329.5,3328.4,0.02983225]
[1768777573539,0.38524127,3329.5,3327.5,0.15031]
[1768777574253,0.37936127,3329.5,3327.5,0.15031]
[1768777577352,0.37936127,3329.5,3327.6,0.15031]
[1768777577662,0.37936127,3329.5,3327.7,0.1503]
[1768777579351,0.37936127,3329.5,3327.7,1.674]
[1768777579659,0.37936127,3329.5,3327.2,0.15032]
[1768777581763,0.38524127,3329.2,3327.2,0.15032]
[1768777583562,0.38524127,3329.2,3328.2,0.01199286]
[1768777584452,0.38524127,3329.2,3327.1,0.00281949]
[1768777584655,0.3049284,3329.0,3327.1,0.00281949]
[1768777585062,1.06311989,3329.5,3327.1,0.00281949]
[1768777585063,0.3049284,3328.7,3327.1,0.00281949]
[1768777586960,1.47396745,3328.8,3327.1,0.00281949]
[1768777586961,0.3049284,3328.5,3327.1,0.00281949]
[1768777590266,0.2990554,3328.5,3327.1,0.00281949]
[1768777590465,1.47396745,3328.5,3325.4,8.77804349]
[1768777590663,1.47396745,3328.5,3326.1,0.15037]
[1768777590865,0.15027,3328.5,3326.1,0.15037]
[1768777591058,0.15028,3328.2,3326.0,3.006]
[1768777591458,0.15028,3328.2,3326.1,4.68]
[1768777591863,0.15028,3328.2,3326.0,0.00361827]
[1768777592169,0.15028,3328.2,3326.1,4.68]
[1768777592380,0.3049284,3327.9,3326.0,0.00361827]
[1768777592665,0.30734291,3327.9,3326.0,0.00361827]
[1768777593472,0.3049284,3327.8,3326.0,0.00361827]
[1768777593664,0.3049284,3327.7,3326.0,0.00361827]
[1768777593860,0.3049284,3327.6,3325.4,0.006014]
[1768777594170,0.3049284,3327.2,3325.4,0.006014]
[1768777594360,0.00241451,3327.9,3323.9,0.47021115]
[1768777594361,0.3049284,3327.0,3323.9,0.47021115]
[1768777594564,0.3049284,3326.7,3324.0,0.15047]
[1768777594866,0.3049284,3326.7,3324.1,3.15646]
[1768777595065,0.3049284,3326.7,3324.2,0.15046]
[1768777595960,0.3049284,3326.7,3324.1,3.006]
[1768777596166,0.3049284,3326.7,3324.1,3.32574115]
[1768777596474,0.3049284,3326.7,3324.1,0.31974115]
[1768777596668,0.3049284,3326.7,3324.2,4.109]
[1768777596872,0.3049284,3326.7,3324.8,0.15043]
[1768777597466,0.3049284,3326.7,3324.3,0.31974115]
[1768777597768,0.3049284,3326.7,3324.3,0.15045]
[1768777598469,0.2929784,3326.7,3324.3,0.15045]
[1768777599067,0.15035,3326.7,3324.3,0.15045]
[1768777599273,0.15035,3326.7,3324.4,4.682]
[1768777599469,0.15036,3326.5,3324.4,4.682]
[1768777599678,0.15036,3326.5,3324.3,0.15045]
[1768777600168,0.15038,3326.0,3324.0,0.00327998]
[1768777600376,3.007,3326.9,3321.5,3.007]
[1768777600377,0.28524084,3325.3,3321.5,3.007]
[1768777600563,0.28524084,3324.9,3322.7,0.15053]
[1768777600969,0.28524084,3324.9,3323.0,0.15051]
[1768777601269,0.28524084,3324.9,3322.3,1.47546868]
[1768777601270,0.28524084,3324.9,3323.1,1.47546868]
[1768777601466,0.28524084,3324.9,3323.2,1.675]
[1768777601467,0.0036141,3324.9,3323.2,1.675]
[1768777601769,0.0036141,3324.9,3323.9,0.15047]
[1768777602271,0.0036141,3324.9,3323.3,3.007]
[1768777602670,0.0036141,3324.9,3323.4,3.1575]
[1768777602972,0.0036141,3324.9,3323.5,0.15049]
[1768777603168,0.0036141,3324.9,3323.6,0.15049]
[1768777603575,0.0036141,3324.9,3324.2,0.01200144]
[1768777604673,0.28885494,3324.9,3323.6,0.15049]
[1768777605576,0.28885494,3324.9,3323.7,0.15048]
[1768777605959,0.28524084,3325.4,3324.1,0.15046]
[1768777607079,0.28837246,3325.4,3324.1,0.15046]
[1768777607770,0.28837246,3325.4,3323.8,3.008]
[1768777607964,0.00313162,3325.4,3323.8,3.008]
[1768777608575,0.28837246,3325.4,3324.0,0.15047]
[1768777609467,0.28837246,3325.4,3323.4,1.375]
[1768777609667,0.28837246,3325.4,3323.3,0.1505]
[1768777609976,0.28837246,3325.4,3323.6,0.15049]
[1768777610675,0.28837246,3325.4,3323.7,0.15048]
[1768777610974,0.28837246,3325.4,3323.8,0.15048]
[1768777611370,0.28837246,3325.4,3324.0,0.15047]
[1768777611574,0.28837246,3325.4,3324.1,0.15046]
[1768777611877,0.28837246,3325.4,3324.2,0.15046]
[1768777612971,0.37898452,3326.3,3324.5,0.15044]
[1768777613766,0.37898452,3326.3,3325.4,0.03602625]
[1768777613966,0.38189774,3326.3,3325.4,0.03833631]
[1768777614370,0.38189774,3326.3,3324.5,0.15044]
[1768777614570,0.37601074,3326.3,3324.5,0.15044]
[1768777615478,0.37601074,3326.3,3324.5,0.15324397]
[1768777616380,0.37601074,3326.3,3324.6,0.15044]
[1768777617065,0.37601074,3326.3,3324.5,3.01080397]
[1768777617369,0.37601074,3326.3,3324.7,0.15043]
[1768777618771,0.37601074,3326.3,3325.0,0.15042]
[1768777619680,0.37601074,3326.3,3324.5,0.00280397]
[1768777620678,0.37601074,3326.3,3325.1,0.15042]
[1768777621276,0.00291322,3326.3,3325.2,0.15041]
[1768777621481,0.00291322,3326.3,3325.4,0.1504]
[1768777621785,0.37898452,3327.7,3325.6,0.15039]
[1768777621983,0.37898452,3327.5,3325.7,0.15039]
[1768777622187,0.37898452,3327.5,3324.9,0.38089262]
[1768777622376,0.37898452,3327.5,3325.6,0.1504]
[1768777622577,0.38210288,3327.5,3325.6,0.1504]
[1768777622777,0.37898452,3327.3,3324.9,0.15043]
[1768777622980,0.37898452,3327.1,3324.9,0.15043]
[1768777623275,0.37898452,3326.9,3325.1,0.15042]
[1768777623681,0.37898452,3326.9,3326.0,0.04092433]
[1768777624783,0.37898452,3326.9,3326.4,0.03731023]
[1768777624986,0.37898452,3326.9,3325.2,0.15041]
[1768777626084,0.37898452,3326.9,3325.3,3.008]
[1768777626788,0.37898452,3326.9,3325.2,0.15041]
[1768777627481,0.37898452,3326.9,3325.3,0.15041]
[1768777627686,0.37898452,3326.9,3325.1,3.008]
[1768777628791,0.37898452,3326.9,3324.8,0.15043]
[1768777629092,0.37898452,3326.9,3325.1,0.15042]
[1768777629980,0.37898452,3326.9,3325.3,0.15041]
[1768777630288,0.37898452,3326.9,3325.4,0.1504]
[1768777630791,0.37310452,3326.9,3325.5,0.1504]
[1768777631174,0.00311836,3327.5,3324.9,0.247]
[1768777631378,0.93275757,3327.4,3324.9,0.15042]
[1768777631590,0.93275757,3327.3,3324.9,0.15042]
[1768777631789,0.93275757,3327.2,3324.9,0.15042]
[1768777632085,0.00311836,3327.5,3325.1,0.15042]
[1768777632287,0.93285279,3327.4,3325.2,0.15041]
[1768777632487,0.93285279,3327.3,3325.2,0.15041]
[1768777632683,0.00311836,3327.5,3325.2,0.15041]
[1768777632880,0.37898452,3327.3,3325.3,0.15041]
[1768777633580,0.37898452,3327.3,3325.4,0.15041]
[1768777633782,0.37898452,3327.3,3326.3,0.04092433]
[1768777633976,0.37898452,3327.3,3326.8,0.04125337]
[1768777634181,0.37898452,3327.3,3326.0,0.15038]
[1768777635285,0.37898452,3327.3,3325.5,3.008]
[1768777635482,0.37898452,3327.3,3325.4,0.1504]
[1768777635684,0.37898452,3327.3,3325.5,3.008]
[1768777635885,0.37898452,3327.3,3325.4,1.8254]
[1768777636084,0.37898452,3327.3,3325.5,3.008]
[1768777636479,0.37898452,3327.3,3325.7,0.15039]
[1768777636695,0.37898452,3327.3,3325.5,3.008]
[1768777636886,0.37898452,3327.3,3326.0,0.15038]
[1768777638292,0.00311836,3327.5,3326.0,0.15038]
[1768777640103,0.00311836,3327.5,3326.1,3.008]
[1768777641188,0.00311836,3327.5,3326.3,0.15036]
[1768777643986,0.00311836,3327.5,3326.9,0.01427939]
[1768777644185,0.00311836,3327.5,3326.9,0.01818413]
[1768777644399,0.00311836,3327.5,3325.7,0.15039]
[1768777644589,0.72497886,3327.5,3325.7,0.15039]
[1768777644899,0.00311836,3327.5,3325.7,0.83964126]
[1768777645198,0.72497886,3327.5,3325.7,0.83964126]
[1768777645392,0.72497886,3327.5,3325.8,4.682]
[1768777645587,0.72497886,3327.5,3325.8,4.83239]
[1768777645789,0.72497886,3327.5,3326.1,0.15037]
[1768777646592,0.00311836,3327.5,3325.9,0.68925126]
[1768777646997,0.71897186,3328.0,3325.9,0.68925126]
[1768777647202,0.71897186,3328.0,3326.4,0.15036]
[1768777648102,0.00240193,3328.0,3326.6,0.15035]
[1768777650996,0.00240193,3328.0,3326.7,0.15035]
[1768777651496,0.00240193,3328.0,3325.9,9.72405446]
[1768777651497,0.00240193,3328.0,3327.0,0.15033]
[1768777651799,0.00240193,3328.0,3327.1,4.83233]
[1768777651996,0.7218605,3329.0,3327.1,4.83233]
[1768777652897,0.72566942,3329.0,3327.1,4.682]
[1768777653304,0.72566942,3329.0,3327.4,0.15031]
[1768777653490,0.72566942,3329.0,3326.7,0.28805627]
[1768777653491,0.72566942,3329.0,3326.8,0.15034]
[1768777653809,0.72566942,3329.0,3326.8,4.63234]
[1768777654101,0.72566942,3329.0,3326.8,0.15034]
[1768777654897,0.72566942,3329.0,3327.2,0.15032]
[1768777657904,0.72566942,3329.0,3327.3,0.15032]
[1768777658099,0.72566942,3329.0,3327.4,0.15031]
[1768777664011,0.72566942,3329.0,3328.2,0.04088278]
[1768777664201,0.72566942,3329.0,3328.6,0.04121149]
[1768777665205,0.72566942,3329.0,3328.2,0.00216441]
[1768777665414,0.72566942,3329.0,3328.8,0.04121149]
[1768777666007,0.72452584,3329.0,3328.8,0.04121149]
[1768777666404,0.00380892,3329.0,3328.9,0.04121149]
[1768777666604,4.06874554,3330.3,3328.9,0.04121149]
[1768777666806,1.59263663,3330.5,3328.9,0.04121149]
[1768777666807,0.92955835,3330.2,3328.9,0.04121149]
[1768777667011,0.92955835,3330.1,3328.9,0.04121149]
[1768777667210,1.06174554,3330.5,3328.9,0.04121149]
[1768777667414,1.99114424,3330.5,3329.7,0.04121149]
[1768777667713,0.9293987,3330.4,3329.7,0.04121149]
[1768777668316,0.88838115,3330.3,3328.7,0.15026]
[1768777669123,0.88838115,3330.3,3328.8,0.15025]
[1768777670209,0.00251226,3330.5,3328.8,0.99162282]
[1768777670520,0.00251226,3330.5,3328.9,0.99162282]
[1768777671416,0.88500641,3330.9,3328.9,0.99162282]
[1768777672410,0.8879129,3330.9,3328.9,0.99162282]
[1768777673910,0.8879129,3330.9,3329.1,0.90575584]
[1768777674507,0.8879129,3330.9,3330.0,0.01427939]
[1768777675416,0.8879129,3330.9,3329.4,3.005]
[1768777675620,0.8879129,3330.9,3329.0,0.15024]
[1768777675816,0.87032189,3330.7,3328.3,0.15027]
[1768777676015,0.87032189,3330.7,3328.3,3.15527]
[1768777676309,0.87032189,3330.5,3328.3,3.15527]
[1768777677220,0.87032189,3330.5,3328.3,3.005]
[1768777677619,0.87032189,3330.5,3328.3,1.674]
[1768777677922,0.87032189,3330.5,3328.4,3.005]
[1768777678726,0.87032189,3330.5,3328.5,0.15026]
[1768777679513,0.87032189,3330.5,3329.4,0.006007]
[1768777680827,0.00290649,3330.9,3329.4,0.006007]
[1768777681122,0.87322838,3330.9,3329.4,0.006007]
[1768777681732,0.87032189,3330.7,3329.4,0.006007]
[1768777682227,0.87032189,3330.7,3328.5,3.15526]
[1768777682529,0.87032189,3330.7,3328.6,0.90575584]
[1768777683128,0.00290649,3330.9,3327.8,3.009]
[1768777683129,0.87032189,3330.2,3328.1,3.91075584]
[1768777683624,0.87032189,3330.2,3328.2,0.90792025]
[1768777684325,0.87032189,3330.2,3329.2,0.0298089]
[1768777684923,0.87032189,3330.8,3329.2,0.0298089]
[1768777685323,0.87032189,3330.8,3330.0,0.0298089]
[1768777686430,0.87032189,3330.8,3330.4,0.0298089]
[1768777686628,0.87032189,3330.8,3329.1,3.005]
[1768777688519,0.00290649,3330.9,3329.4,0.90575584]
[1768777689236,0.00290649,3330.9,3329.5,3.005]
[1768777689431,0.00290649,3330.9,3329.6,0.90575584]
[1768777690334,0.00290649,3330.9,3329.7,4.642]
[1768777691333,0.00290649,3330.9,3329.1,0.90575584]
[1768777691633,0.87322838,3330.9,3329.1,0.90575584]
[1768777694033,0.87322838,3330.9,3329.0,4.82724]
[1768777694429,0.87322838,3330.9,3329.9,0.0298089]
[1768777695135,0.00290649,3330.9,3329.9,0.0298089]
[1768777695332,0.00290649,3330.9,3329.0,1.05599584]
[1768777695939,0.00290649,3330.9,3329.2,0.90575584]
[1768777697128,0.00290649,3330.9,3329.2,1.05598584]
[1768777697336,0.00290649,3330.9,3329.3,4.677]
[1768777698036,0.00290649,3330.9,3329.4,1.673]
[1768777699437,0.00290649,3330.9,3329.4,1.82322]
[1768777699641,0.00290649,3330.9,3329.5,1.05597584]
[1768777701834,0.00290649,3330.9,3329.6,1.05596584]
[1768777704344,0.00290649,3330.9,3330.2,0.01754653]
[1768777704529,0.00290649,3330.9,3330.5,0.01768761]
[1768777705338,0.87032189,3331.5,3330.5,0.01768761]
[1768777705636,0.87032189,3331.5,3331.0,0.01768761]
[1768777705843,0.87032189,3331.5,3331.0,0.01478112]
[1768777706134,0.69117655,3331.9,3331.0,0.01478112]
[1768777706341,0.69497089,3331.9,3331.0,0.01867554]
[1768777707039,0.69497089,3331.9,3331.4,0.01478112]
[1768777707940,0.69497089,3331.9,3331.6,0.01478112]
[1768777708141,0.00379434,3331.9,3331.6,0.01478112]
[1768777709040,0.00379434,3331.9,3331.7,0.01478112]
[1768777710035,0.00379434,3331.9,3331.8,0.01478112]
[1768777711536,1.06174554,3332.9,3331.8,0.01478112]
[1768777711755,1.99519392,3332.9,3331.8,0.01478112]
[1768777711944,2.68637047,3332.9,3331.8,0.01478112]
[1768777712146,0.69117655,3332.7,3332.3,0.01098678]
[1768777712337,0.93344838,3332.6,3331.0,0.00389442]
[1768777712539,0.69438903,3332.7,3331.0,0.00389442]
[1768777712840,0.93327374,3332.6,3331.0,0.00389442]
[1768777713038,0.00321248,3332.7,3331.0,0.68086769]
[1768777713239,0.69438903,3332.7,3331.0,0.00389442]
[1768777713945,0.15009,3332.4,3331.0,0.00389442]
[1768777714248,0.69117655,3332.2,3331.0,0.00389442]
[1768777714836,0.69117655,3332.0,3330.1,0.15019]
[1768777715043,0.84128655,3332.0,3329.5,0.67697327]
[1768777715241,0.84128655,3332.0,3329.6,3.83119327]
[1768777715446,0.84128655,3332.0,3329.7,0.82718327]
[1768777715847,0.84128655,3332.0,3329.7,0.83036343]
[1768777717346,0.84128655,3332.0,3329.9,0.67697327]
[1768777718664,0.58050636,3332.5,3330.1,0.58299968]